[Event "Kragero Resort International 2022"]
[Site "Kragero"]
[Date "2022.02.23"]
[Round "1.1"]
[White "Omtvedt, Per"]
[Black "Omarsson, Adam"]
[Result "0-1"]
[ECO "E94"]
[WhiteElo "1829"]
[BlackElo "1546"]
[Annotator "NA RC"]
[PlyCount "100"]
[EventDate "2022.02.23"]
[EventType "swiss"]
[EventCountry "NOR"]
[SourceTitle "playchess.com"]
[Source "ChessBase"]
[SourceQuality "1"]
[TimeControl "5400+30"]

1. e4 {[%emt 0:00:07]} g6 {[%emt 0:00:10]} 2. d4 {[%emt 0:00:33]} Bg7 {[%emt 0:00:30]} 3. c4 {[%emt 0:01:56]} d6 {[%emt 0:00:57]} 4. Nc3 {[%emt 0:00:27]} Nf6 {[%emt 0:01:00]} 5. Nf3 {[%emt 0:00:26]} O-O {[%emt 0:00:56]} 6. Be2 {[%emt 0:00:42]} e5 {[%emt 0:01:25]} 7. O-O {[%emt 0:01:52]} exd4 {[%emt 0:01:01]} 8. Nxd4 {[%emt 0:00:08]} Re8 {[%emt 0:00:55]} 9. f3 {[%emt 0:00:34]} a6 {[%emt 0:03:07]} 10. Be3 {[%emt 0:05:16]} c5 {[%emt 0:02:54]} 11. Nc2 {[%emt 0:01:05]} Nc6 {[%emt 0:00:55]} 12. Qd2 {[%emt 0:00:35]} Be6 {[%emt 0:03:05]} 13. Rad1 {[%emt 0:01:08]} Qb6 {[%emt 0:01:08]} 14. b3 {[%emt 0:05:04]} Rad8 {[%emt 0:02:43]} 15. Bg5 {[%emt 0:04:48]} Qa5 {[%emt 0:02:46]} 16. Nd5 {[%emt 0:10:19]} Qxd2 {[%emt 0:03:24]} 17. Rxd2 {[%emt 0:03:17]} Bxd5 {[%emt 0:02:29]} 18. cxd5 {[%emt 0:02:38]} Ne5 {[%emt 0:01:15]} 19. a4 {[%emt 0:03:18]} h6 {[%emt 0:02:31]} 20. Bh4 {[%emt 0:01:56]} Rb8 {[%emt 0:05:29]} 21. Na3 {[%emt 0:01:48]} Rec8 {[%emt 0:10:05]} 22. Rb1 {[%emt 0:03:16]} g5 {[%emt 0:07:00]} 23. Bg3 {[%emt 0:01:32]} Nh5 {[%emt 0:01:32]} 24. Nc4 {[%emt 0:00:41]} Nxg3 {[%emt 0:03:02]} 25. hxg3 {[%emt 0:00:56]} Nxc4 {[%emt 0:00:15]} 26. bxc4 {[%emt 0:00:11]} Re8 {[%emt 0:00:39]} 27. g4 {[%emt 0:01:16]} Bd4+ {[%emt 0:01:07]} 28. Kf1 {[%emt 0:00:15]} Kg7 {[%emt 0:00:17]} 29. Rd3 {[%emt 0:00:15]} Rh8 {[%emt 0:00:36]} 30. g3 {[%emt 0:01:43]} h5 {[%emt 0:00:32]} 31. Kg2 {[%emt 0:03:42]} hxg4 {[%emt 0:00:32]} 32. fxg4 {[%emt 0:00:09]} Rh6 {[%emt 0:00:25]} 33. Rh1 {[%emt 0:00:16]} Rxh1 {[%emt 0:01:24]} 34. Kxh1 {[%emt 0:00:05]} b5 {[%emt 0:00:27]} 35. cxb5 {[%emt 0:06:01]} axb5 {[%emt 0:00:08]} 36. Rb3 {[%emt 0:01:25]} Rh8+ {[%emt 0:00:37]} 37. Kg2 {[%emt 0:00:06]} bxa4 {[%emt 0:00:09]} 38. Ra3 {[%emt 0:00:32]} Ra8 {[%emt 0:00:50]} 39. Bb5 {[%emt 0:00:10]} Rb8 {[%emt 0:00:17]} 40. Bxa4 {[%emt 0:00:20]} Rb2+ {[%emt 0:00:19]} 41. Kf1 {[%emt 0:00:53]} c4 {[%emt 0:00:35]} 42. Ke1 {[%emt 0:04:34]} c3 {[%emt 0:01:16]} 43. Kd1 {[%emt 0:00:16]} Rd2+ {[%emt 0:00:19]} 44. Kc1 {[%emt 0:00:15]} Kf6 {[%emt 0:00:46]} 45. Bc2 {[%emt 0:04:22]} Rg2 {[%emt 0:00:39]} 46. Ra4 {[%emt 0:01:38]} Ke5 {[%emt 0:00:44]} 47. Rc4 {[%emt 0:00:25]} Rg1+ {[%emt 0:01:25]} 48. Bd1 {[%emt 0:00:10]} Kxe4 {[%emt 0:00:15]} 49. Rc7 {[%emt 0:00:10]} Kd3 {[%emt 0:00:15]} 50. Rxf7 {[%emt 0:01:32]} Be3+ {[%emt 0:00:17]} 0-1

[Event "Kragero Resort International 2022"]
[Site "Kragero"]
[Date "2022.02.23"]
[Round "1.2"]
[White "Lien, Sebastian"]
[Black "Madsen, Morten L"]
[Result "1-0"]
[ECO "A57"]
[WhiteElo "1532"]
[BlackElo "1828"]
[Annotator "NA RC"]
[PlyCount "57"]
[EventDate "2022.02.23"]
[EventType "swiss"]
[EventCountry "NOR"]
[SourceTitle "playchess.com"]
[Source "ChessBase"]
[SourceQuality "1"]
[TimeControl "5400+30"]

1. d4 {[%emt 0:00:06]} Nf6 {[%emt 0:06:49]} 2. c4 {[%emt 0:00:17]} c5 {[%emt 0:01:02]} 3. d5 {[%emt 0:00:12]} b5 {[%emt 0:00:21]} 4. cxb5 {[%emt 0:03:35]} a6 {[%emt 0:00:14]} 5. e3 {[%emt 0:00:29]} d6 {[%emt 0:04:45]} 6. Nc3 {[%emt 0:09:02]} g6 {[%emt 0:02:18]} 7. Nf3 {[%emt 0:00:05]} Bg7 {[%emt 0:00:18]} 8. Be2 {[%emt 0:16:13]} O-O {[%emt 0:02:26]} 9. O-O {[%emt 0:01:13]} Nbd7 {[%emt 0:02:09]} 10. Bd2 {[%emt 0:08:46]} Nb6 {[%emt 0:12:39]} 11. e4 {[%emt 0:06:42]} Re8 {[%emt 0:02:38]} 12. a4 {[%emt 0:11:02]} axb5 {[%emt 0:00:55]} 13. Bxb5 {[%emt 0:00:42]} Bd7 {[%emt 0:00:22]} 14. Bxd7 {[%emt 0:00:13]} Qxd7 {[%emt 0:01:03]} 15. Re1 {[%emt 0:07:33]} Reb8 {[%emt 0:03:04]} 16. b3 {[%emt 0:07:14]} Ng4 {[%emt 0:06:22]} 17. Rb1 {[%emt 0:06:50]} c4 {[%emt 0:03:34]} 18. h3 {[%emt 0:05:45]} Ne5 {[%emt 0:01:27]} 19. Nxe5 {[%emt 0:00:11]} Bxe5 {[%emt 0:00:09]} 20. bxc4 {[%emt 0:02:42]} Nxc4 {[%emt 0:02:42]} 21. Rxb8+ {[%emt 0:00:11]} Rxb8 {[%emt 0:00:09]} 22. Nb5 {[%emt 0:00:38]} Nb2 {[%emt 0:01:36]} 23. Qb3 {[%emt 0:01:35]} Nxa4 {[%emt 0:00:39]} 24. Qxa4 {[%emt 0:00:08]} Rxb5 {[%emt 0:08:46]} 25. Bh6 {[%emt 0:01:28]} Qb7 {[%emt 0:08:55]} 26. Rc1 {[%emt 0:00:33]} Bf4 {[%emt 0:10:51]} 27. Qxb5 {[%emt 0:02:26]} Bxh6 {[%emt 0:00:40]} 28. Qxb7 {[%emt 0:00:10]} Bxc1 {[%emt 0:00:09]} 29. Qc8+ {[%emt 0:00:06]} 1-0

[Event "Kragero Resort International 2022"]
[Site "Kragero"]
[Date "2022.02.23"]
[Round "1.3"]
[White "Engeset, Audun"]
[Black "Haubrick, Sidney Junior Barret"]
[Result "1-0"]
[ECO "B12"]
[WhiteElo "1823"]
[BlackElo "1479"]
[Annotator "NA RC"]
[PlyCount "73"]
[EventDate "2022.02.23"]
[EventType "swiss"]
[EventCountry "NOR"]
[SourceTitle "playchess.com"]
[Source "ChessBase"]
[SourceQuality "1"]
[TimeControl "5400+30"]

1. e4 {[%emt 1:33:38]} c6 {[%emt 0:00:09]} 2. d4 {[%emt 0:00:13]} d5 {[%emt 0:00:05]} 3. e5 {[%emt 0:00:07]} c5 {[%emt 0:00:09]} 4. dxc5 {[%emt 0:00:28]} Nc6 {[%emt 0:00:09]} 5. Nf3 {[%emt 0:01:12]} Bg4 {[%emt 0:00:09]} 6. Be2 {[%emt 0:05:05]} e6 {[%emt 0:01:25]} 7. Bf4 {[%emt 0:01:05]} Bxc5 {[%emt 0:01:17]} 8. Nbd2 {[%emt 0:01:37]} Nge7 {[%emt 0:04:25]} 9. O-O {[%emt 0:06:00]} O-O {[%emt 0:00:37]} 10. h3 {[%emt 0:03:32]} Bxf3 {[%emt 0:03:26]} 11. Nxf3 {[%emt 0:02:15]} Ng6 {[%emt 0:00:51]} 12. Qd2 {[%emt 0:07:01]} Qc7 {[%emt 0:05:34]} 13. Rae1 {[%emt 0:16:03]} Ncxe5 {[%emt 0:09:43]} 14. Nxe5 {[%emt 0:03:29]} Nxf4 {[%emt 0:03:50]} 15. Qxf4 {[%emt 0:01:04]} Bd6 {[%emt 0:00:16]} 16. Bd3 {[%emt 0:01:21]} f6 {[%emt 0:10:05]} 17. Qh4 {[%emt 0:07:24]} g5 {[%emt 0:00:42]} 18. Qg4 {[%emt 0:01:03]} Bxe5 {[%emt 0:01:48]} 19. Qxe6+ {[%emt 0:01:36]} Qf7 {[%emt 0:00:30]} 20. Qg4 {[%emt 0:02:51]} b6 {[%emt 0:04:22]} 21. Bf5 {[%emt 0:04:35]} Rfe8 {[%emt 0:05:07]} 22. c3 {[%emt 0:02:35]} Qc7 {[%emt 0:09:39]} 23. Be6+ {[%emt 0:03:00]} Kh8 {[%emt 0:02:36]} 24. Bxd5 {[%emt 0:00:32]} Rad8 {[%emt 0:01:27]} 25. Rd1 {[%emt 0:00:24]} Re7 {[%emt 0:05:29]} 26. Be6 {[%emt 0:06:31]} Rd6 {[%emt 0:04:35]} 27. Bf5 {[%emt 0:01:51]} Qd8 {[%emt 0:03:29]} 28. Rxd6 {[%emt 0:01:16]} Qxd6 {[%emt 0:00:43]} 29. Rd1 {[%emt 0:01:42]} Qc7 {[%emt 0:01:07]} 30. a4 {[%emt 0:02:41]} a5 {[%emt 0:00:27]} 31. Qh5 {[%emt 0:01:56]} Bh2+ {[%emt 0:03:58]} 32. Kh1 {[%emt 0:00:53]} Bf4 {[%emt 0:00:04]} 33. Qh6 {[%emt 0:02:33]} Kg8 {[%emt 0:09:31]} 34. Qxf6 {[%emt 0:00:58]} Bd2 {[%emt 0:01:09]} 35. Be6+ {[%emt 0:00:21]} Rf7 {[%emt 0:01:19]} 36. Bxf7+ {[%emt 0:00:18]} Qxf7 {[%emt 0:00:24]} 37. Qxf7+ {[%emt 0:00:10]} 1-0

[Event "Kragero Resort International 2022"]
[Site "Kragero"]
[Date "2022.02.23"]
[Round "1.4"]
[White "Eriksen, Leander"]
[Black "Amundsen, Ask"]
[Result "1-0"]
[ECO "B40"]
[WhiteElo "1476"]
[BlackElo "1819"]
[Annotator "NA RC"]
[PlyCount "57"]
[EventDate "2022.02.23"]
[EventType "swiss"]
[EventCountry "NOR"]
[SourceTitle "playchess.com"]
[Source "ChessBase"]
[SourceQuality "1"]
[TimeControl "5400+30"]

1. e4 {[%emt 0:00:08]} c5 {[%emt 0:00:08]} 2. Nf3 {[%emt 0:00:11]} e6 {[%emt 0:00:07]} 3. d3 {[%emt 0:00:19]} a6 {[%emt 0:01:29]} 4. g3 {[%emt 0:00:57]} b5 {[%emt 0:00:43]} 5. Bg2 {[%emt 0:02:46]} Bb7 {[%emt 0:00:33]} 6. O-O {[%emt 0:02:38]} Nf6 {[%emt 0:05:16]} 7. Re1 {[%emt 0:07:20]} Be7 {[%emt 0:00:50]} 8. h4 {[%emt 0:03:32]} d5 {[%emt 0:01:46]} 9. e5 {[%emt 0:04:09]} Nfd7 {[%emt 0:00:14]} 10. c3 {[%emt 0:04:24]} Nc6 {[%emt 0:01:53]} 11. Bf4 {[%emt 0:01:53]} c4 {[%emt 0:02:59]} 12. d4 {[%emt 0:01:14]} b4 {[%emt 0:01:29]} 13. Ng5 {[%emt 0:05:06]} h6 {[%emt 0:07:58]} 14. Nxe6 {[%emt 0:00:32]} fxe6 {[%emt 0:01:51]} 15. Qh5+ {[%emt 0:00:15]} Kf8 {[%emt 0:00:13]} 16. Qg6 {[%emt 0:04:20]} Qe8 {[%emt 0:01:30]} 17. Qxe6 {[%emt 0:00:19]} Nd8 {[%emt 0:02:33]} 18. Qf5+ {[%emt 0:01:31]} Kg8 {[%emt 0:01:04]} 19. h5 {[%emt 0:06:08]} Nf8 {[%emt 0:11:14]} 20. e6 {[%emt 0:07:55]} Qc6 {[%emt 0:02:40]} 21. Re5 {[%emt 0:02:41]} Qc8 {[%emt 0:09:32]} 22. Nd2 {[%emt 0:06:46]} bxc3 {[%emt 0:01:06]} 23. bxc3 {[%emt 0:02:04]} Nfxe6 {[%emt 0:15:26]} 24. Rae1 {[%emt 0:07:26]} Nxf4 {[%emt 0:07:24]} 25. Qxf4 {[%emt 0:00:31]} Bg5 {[%emt 0:04:43]} 26. Re8+ {[%emt 0:01:39]} Kh7 {[%emt 0:00:12]} 27. Rxh8+ {[%emt 0:00:07]} Kxh8 {[%emt 0:00:12]} 28. Qf8+ {[%emt 0:00:09]} Kh7 {[%emt 0:00:39]} 29. Re8 {[%emt 0:00:07]} 1-0

[Event "Kragero Resort International 2022"]
[Site "Kragero"]
[Date "2022.02.23"]
[Round "1.5"]
[White "Lye, Sigurd"]
[Black "Den Roover, Nikolay"]
[Result "1-0"]
[ECO "B11"]
[WhiteElo "1810"]
[BlackElo "1471"]
[Annotator "NA RC"]
[PlyCount "49"]
[EventDate "2022.02.23"]
[EventType "swiss"]
[EventCountry "NOR"]
[SourceTitle "playchess.com"]
[Source "ChessBase"]
[SourceQuality "1"]
[TimeControl "5400+30"]

1. e4 {[%emt 0:00:02]} c6 {[%emt 0:00:14]} 2. Nc3 {[%emt 0:00:05]} d5 {[%emt 0:00:26]} 3. Nf3 {[%emt 0:00:05]} dxe4 {[%emt 0:00:22]} 4. Nxe4 {[%emt 0:00:09]} Nf6 {[%emt 0:00:11]} 5. Qe2 {[%emt 0:00:11]} Nxe4 {[%emt 0:00:12]} 6. Qxe4 {[%emt 0:00:05]} Qd5 {[%emt 0:00:22]} 7. Qf4 {[%emt 0:00:07]} Qd6 {[%emt 0:02:06]} 8. Qxd6 {[%emt 0:04:48]} exd6 {[%emt 0:00:16]} 9. b3 {[%emt 0:00:18]} Be7 {[%emt 0:01:44]} 10. Bb2 {[%emt 0:00:12]} O-O {[%emt 0:00:34]} 11. O-O-O {[%emt 0:01:42]} Be6 {[%emt 0:09:47]} 12. Re1 {[%emt 0:01:44]} Re8 {[%emt 0:10:49]} 13. Nd4 {[%emt 0:07:09]} Bf6 {[%emt 0:01:57]} 14. g3 {[%emt 0:15:46]} Nd7 {[%emt 0:13:37]} 15. Nxe6 {[%emt 0:01:08]} Bxb2+ {[%emt 0:04:53]} 16. Kxb2 {[%emt 0:00:08]} fxe6 {[%emt 0:03:42]} 17. Bh3 {[%emt 0:00:39]} Nf6 {[%emt 0:06:16]} 18. Bxe6+ {[%emt 0:02:49]} Kf8 {[%emt 0:00:38]} 19. f4 {[%emt 0:08:53]} Re7 {[%emt 0:04:04]} 20. f5 {[%emt 0:01:14]} Rae8 {[%emt 0:02:16]} 21. h3 {[%emt 0:02:28]} Nh5 {[%emt 0:18:49]} 22. Rhg1 {[%emt 0:03:43]} g6 {[%emt 0:16:01]} 23. Ref1 {[%emt 0:01:22]} Kg7 {[%emt 0:01:53]} 24. g4 {[%emt 0:00:16]} Nf6 {[%emt 0:00:51]} 25. g5 {[%emt 0:00:16]} 1-0

[Event "Kragero Resort International 2022"]
[Site "Kragero"]
[Date "2022.02.23"]
[Round "1.6"]
[White "Shadrina, Eva"]
[Black "Haug, Havard"]
[Result "0-1"]
[ECO "B76"]
[WhiteElo "1466"]
[BlackElo "1801"]
[Annotator "NA RC"]
[PlyCount "50"]
[EventDate "2022.02.23"]
[EventType "swiss"]
[EventCountry "NOR"]
[SourceTitle "playchess.com"]
[Source "ChessBase"]
[SourceQuality "1"]
[TimeControl "5400+30"]

1. e4 {[%emt 0:00:05]} c5 {[%emt 0:00:07]} 2. Nf3 {[%emt 0:00:17]} d6 {[%emt 0:00:09]} 3. d4 {[%emt 0:00:24]} cxd4 {[%emt 0:00:20]} 4. Nxd4 {[%emt 0:00:08]} Nf6 {[%emt 0:00:09]} 5. Nc3 {[%emt 0:02:18]} g6 {[%emt 0:00:07]} 6. f3 {[%emt 0:05:06]} Bg7 {[%emt 0:00:19]} 7. Be3 {[%emt 0:00:45]} O-O {[%emt 0:00:17]} 8. Qd2 {[%emt 0:00:29]} Nc6 {[%emt 0:00:15]} 9. O-O-O {[%emt 0:01:15]} d5 {[%emt 0:01:14]} 10. Nxc6 {[%emt 0:07:00]} bxc6 {[%emt 0:01:20]} 11. exd5 {[%emt 0:03:51]} cxd5 {[%emt 0:00:52]} 12. Nxd5 {[%emt 0:03:22]} Nxd5 {[%emt 0:00:10]} 13. Qxd5 {[%emt 0:00:54]} Qc7 {[%emt 0:00:32]} 14. Qc4 {[%emt 0:10:26]} Qe5 {[%emt 0:05:34]} 15. Bd4 {[%emt 0:04:14]} Qf4+ {[%emt 0:01:47]} 16. Kb1 {[%emt 0:00:43]} Be6 {[%emt 0:01:11]} 17. Qa4 {[%emt 0:15:53]} Rfd8 {[%emt 0:04:39]} 18. c3 {[%emt 0:01:38]} Bf5+ {[%emt 0:01:23]} 19. Ka1 {[%emt 0:02:15]} e5 {[%emt 0:01:28]} 20. g3 {[%emt 0:08:09]} Qxf3 {[%emt 0:02:40]} 21. Rg1 {[%emt 0:08:04]} exd4 {[%emt 0:01:46]} 22. Bg2 {[%emt 0:00:40]} dxc3 {[%emt 0:00:21]} 23. Rxd8+ {[%emt 0:13:29]} Rxd8 {[%emt 0:00:04]} 24. a3 {[%emt 0:00:32]} cxb2+ {[%emt 0:00:32]} 25. Ka2 {[%emt 0:00:09]} Qxg2 {[%emt 0:00:17]} 0-1

[Event "Kragero Resort International 2022"]
[Site "Kragero"]
[Date "2022.02.23"]
[Round "1.7"]
[White "Jonsson, Kristjan Dagur"]
[Black "Johannessen, Simon T"]
[Result "1-0"]
[ECO "D06"]
[WhiteElo "1797"]
[BlackElo "1453"]
[Annotator "NA RC"]
[PlyCount "49"]
[EventDate "2022.02.23"]
[EventType "swiss"]
[EventCountry "NOR"]
[SourceTitle "playchess.com"]
[Source "ChessBase"]
[SourceQuality "1"]
[TimeControl "5400+30"]

1. d4 {[%emt 0:00:03]} Nf6 {[%emt 0:00:11]} 2. c4 {[%emt 0:00:11]} d5 {[%emt 0:00:11]} 3. Nc3 {[%emt 0:00:43]} Bf5 {[%emt 0:02:45]} 4. Nf3 {[%emt 0:01:23]} e6 {[%emt 0:01:04]} 5. Qb3 {[%emt 0:02:57]} b6 {[%emt 0:02:37]} 6. cxd5 {[%emt 0:06:54]} Nxd5 {[%emt 0:01:16]} 7. e4 {[%emt 0:05:04]} Nxc3 {[%emt 0:01:41]} 8. exf5 {[%emt 0:00:27]} Nd5 {[%emt 0:00:43]} 9. Bc4 {[%emt 0:02:03]} c6 {[%emt 0:04:42]} 10. fxe6 {[%emt 0:01:52]} fxe6 {[%emt 0:01:04]} 11. O-O {[%emt 0:03:32]} b5 {[%emt 0:03:13]} 12. Bd3 {[%emt 0:04:58]} Bd6 {[%emt 0:07:28]} 13. Bg5 {[%emt 0:03:32]} Be7 {[%emt 0:03:17]} 14. Bxe7 {[%emt 0:01:06]} Qxe7 {[%emt 0:01:21]} 15. Rfe1 {[%emt 0:03:57]} O-O {[%emt 0:05:46]} 16. Be4 {[%emt 0:04:38]} Qd8 {[%emt 0:09:39]} 17. Qc2 {[%emt 0:03:01]} Kh8 {[%emt 0:08:39]} 18. Ne5 {[%emt 0:06:46]} Ne7 {[%emt 0:11:51]} 19. Bxh7 {[%emt 0:04:02]} Nd7 {[%emt 0:07:01]} 20. Rad1 {[%emt 0:08:14]} Rc8 {[%emt 0:02:04]} 21. Re3 {[%emt 0:04:48]} c5 {[%emt 0:02:36]} 22. Rh3 {[%emt 0:00:52]} Nf6 {[%emt 0:02:18]} 23. Bg6+ {[%emt 0:01:21]} Kg8 {[%emt 0:00:24]} 24. Bf7+ {[%emt 0:00:45]} Rxf7 {[%emt 0:00:27]} 25. Rh8+ {[%emt 0:02:36]} 1-0

[Event "Kragero Resort International 2022"]
[Site "Kragero"]
[Date "2022.02.23"]
[Round "1.8"]
[White "Lie, Bjorn"]
[Black "Thorisson, Benedikt"]
[Result "1/2-1/2"]
[ECO "D87"]
[WhiteElo "1451"]
[BlackElo "1790"]
[Annotator "NA RC"]
[PlyCount "76"]
[EventDate "2022.02.23"]
[EventType "swiss"]
[EventCountry "NOR"]
[SourceTitle "playchess.com"]
[Source "ChessBase"]
[SourceQuality "1"]
[TimeControl "5400+30"]

1. d4 {[%emt 0:00:03]} Nf6 {[%emt 0:00:06]} 2. c4 {[%emt 0:00:08]} g6 {[%emt 0:00:07]} 3. Nc3 {[%emt 0:00:06]} d5 {[%emt 0:00:13]} 4. cxd5 {[%emt 0:00:07]} Nxd5 {[%emt 0:00:07]} 5. e4 {[%emt 0:00:08]} Nxc3 {[%emt 0:00:41]} 6. bxc3 {[%emt 0:00:12]} Bg7 {[%emt 0:00:16]} 7. Bc4 {[%emt 0:00:17]} c5 {[%emt 0:00:44]} 8. Ne2 {[%emt 0:00:07]} O-O {[%emt 0:00:31]} 9. O-O {[%emt 0:00:50]} Nc6 {[%emt 0:01:13]} 10. Be3 {[%emt 0:00:14]} Bg4 {[%emt 0:03:15]} 11. f3 {[%emt 0:00:10]} Bd7 {[%emt 0:00:06]} 12. Qd2 {[%emt 0:07:31]} Qc7 {[%emt 0:01:46]} 13. Rac1 {[%emt 0:02:40]} Rfd8 {[%emt 0:04:41]} 14. Rfd1 {[%emt 0:03:28]} Rac8 {[%emt 0:03:17]} 15. a4 {[%emt 0:14:28]} Na5 {[%emt 0:01:06]} 16. Ba2 {[%emt 0:01:08]} Bxa4 {[%emt 0:00:27]} 17. Re1 {[%emt 0:01:20]} Bb3 {[%emt 0:03:56]} 18. Qb2 {[%emt 0:02:13]} c4 {[%emt 0:02:52]} 19. Ra1 {[%emt 0:09:40]} b5 {[%emt 0:02:58]} 20. Nc1 {[%emt 0:04:21]} Bxa2 {[%emt 0:00:31]} 21. Qxa2 {[%emt 0:00:21]} Nc6 {[%emt 0:00:19]} 22. Ne2 {[%emt 0:01:57]} Ra8 {[%emt 0:02:03]} 23. Qa6 {[%emt 0:00:34]} Rdb8 {[%emt 0:03:09]} 24. d5 {[%emt 0:02:11]} Ne5 {[%emt 0:00:10]} 25. Reb1 {[%emt 0:02:14]} Nd3 {[%emt 0:16:16]} 26. Rxb5 {[%emt 0:02:15]} Rxb5 {[%emt 0:00:22]} 27. Qxb5 {[%emt 0:00:26]} Rb8 {[%emt 0:00:07]} 28. Qa6 {[%emt 0:04:44]} Be5 {[%emt 0:02:11]} 29. g3 {[%emt 0:02:22]} Rb2 {[%emt 0:10:33]} 30. Kf1 {[%emt 0:11:51]} Qd7 {[%emt 0:08:28]} 31. Ng1 {[%emt 0:03:18]} Bxc3 {[%emt 0:01:51]} 32. Qxc4 {[%emt 0:00:24]} Qb5 {[%emt 0:01:50]} 33. Qxb5 {[%emt 0:01:17]} Rxb5 {[%emt 0:00:37]} 34. Rxa7 {[%emt 0:01:59]} Rb1+ {[%emt 0:01:58]} 35. Kg2 {[%emt 0:01:36]} Rb2+ {[%emt 0:03:40]} 36. Kf1 {[%emt 0:01:11]} Rb1+ {[%emt 0:03:35]} 37. Kg2 {[%emt 0:00:17]} Rb2+ {[%emt 0:00:15]} 38. Kf1 {[%emt 0:00:08]} Rb1+ {[%emt 0:03:52]} 1/2-1/2

[Event "Kragero Resort International 2022"]
[Site "Kragero"]
[Date "2022.02.23"]
[Round "1.23"]
[White "Bogdanov, Artyom"]
[Black "Reimanis, Ritvars"]
[Result "1/2-1/2"]
[ECO "C65"]
[WhiteElo "2039"]
[BlackElo "2397"]
[Annotator "NA RC"]
[PlyCount "35"]
[EventDate "2022.02.23"]
[EventType "swiss"]
[EventCountry "NOR"]
[SourceTitle "playchess.com"]
[Source "ChessBase"]
[SourceQuality "1"]
[TimeControl "5400+30"]

1. e4 {[%emt 0:00:08]} e5 {[%emt 0:00:14]} 2. Nf3 {[%emt 0:00:08]} Nc6 {[%emt 0:00:05]} 3. Bb5 {[%emt 0:00:06]} Nf6 {[%emt 0:00:07]} 4. d3 {[%emt 0:00:24]} Bc5 {[%emt 0:00:05]} 5. Bxc6 {[%emt 0:00:13]} dxc6 {[%emt 0:00:05]} 6. O-O {[%emt 0:00:20]} Nd7 {[%emt 0:00:53]} 7. Nbd2 {[%emt 0:09:13]} a5 {[%emt 0:16:49]} 8. a4 {[%emt 0:09:53]} O-O {[%emt 0:07:27]} 9. Nb3 {[%emt 0:05:53]} Bb6 {[%emt 0:04:47]} 10. Bd2 {[%emt 0:02:25]} c5 $16 {[%emt 0:09:37]} (10... Re8 $1 $11 {should be considered.}) 11. Qe1 {[%emt 0:15:52]} c6 {[%emt 0:00:19]} 12. Be3 {[%emt 0:00:23]} f5 {[%emt 0:10:39]} 13. exf5 {[%emt 0:02:57]} Rxf5 {[%emt 0:01:53]} 14. Nfd2 {[%emt 0:01:06]} Bc7 {[%emt 0:09:20]} 15. Nxc5 {[%emt 0:12:10]} Nxc5 {[%emt 0:00:05]} 16. Bxc5 {[%emt 0:00:20]} Rh5 {[%emt 0:12:47]} 17. Qe4 {[%emt 0:08:31]} Be6 {[%emt 0:00:26]} 18. h3 {[%emt 0:04:39]} 1/2-1/2

[Event "Kragero Resort International 2022"]
[Site "Kragero"]
[Date "2022.02.23"]
[Round "2.1"]
[White "Kveim, Ingvar Torjesen"]
[Black "Engeset, Audun"]
[Result "0-1"]
[ECO "B31"]
[WhiteElo "1647"]
[BlackElo "1823"]
[Annotator "NA RC"]
[PlyCount "98"]
[EventDate "2022.02.23"]
[EventType "swiss"]
[EventCountry "NOR"]
[SourceTitle "playchess.com"]
[Source "ChessBase"]
[SourceQuality "1"]
[TimeControl "5400+30"]

1. e4 {[%emt 0:00:06]} c5 {[%emt 0:00:09]} 2. Nf3 {[%emt 0:00:04]} Nc6 {[%emt 0:00:08]} 3. Bb5 {[%emt 0:00:06]} g6 {[%emt 0:00:19]} 4. c3 {[%emt 0:00:04]} Bg7 {[%emt 0:01:31]} 5. O-O {[%emt 0:00:06]} Nf6 {[%emt 0:01:14]} 6. Re1 {[%emt 0:00:05]} O-O {[%emt 0:01:41]} 7. d4 {[%emt 0:06:29]} d5 {[%emt 0:01:04]} 8. e5 {[%emt 0:00:05]} Ne4 {[%emt 0:01:03]} 9. Bd3 {[%emt 0:10:33] 9.Be3 is the modern continuation.} cxd4 {[%emt 0:02:36]} 10. cxd4 {[%emt 0:00:11]} Qb6 {[%emt 0:02:43]} 11. Bxe4 {[%emt 0:08:39]} dxe4 {[%emt 0:00:09]} 12. Rxe4 {[%emt 0:00:02] [#]} Rd8 $146 {[%emt 0:03:53]} ({Predecessor:} 12... Bf5 13. Re2 Rfd8 14. d5 Bg4 15. Bf4 Bxf3 16. gxf3 Qd4 17. Qc1 Qxd5 18. Nc3 Qxf3 {0-1 (25) Nagataki,K (1845)-Matsuda,R (2095) Tokyo 2020}) 13. Nc3 {[%emt 0:10:51]} Bf5 {[%emt 0:02:46]} 14. Na4 {[%emt 0:11:02]} Qc7 {[%emt 0:00:55]} 15. Re1 {[%emt 0:00:14]} Nxe5 {[%emt 0:01:05]} 16. Bf4 {[%emt 0:00:11]} Nxf3+ {[%emt 0:00:25]} 17. Qxf3 {[%emt 0:00:09]} Qd7 {[%emt 0:05:28]} 18. Nc3 {[%emt 0:03:28]} Bxd4 {[%emt 0:07:00]} 19. Be5 {[%emt 0:04:20]} Bxe5 {[%emt 0:05:41]} 20. Rxe5 {[%emt 0:00:04]} Be6 {[%emt 0:07:35]} 21. h3 {[%emt 0:06:09]} Qc6 {[%emt 0:05:21]} 22. Qe3 {[%emt 0:04:32]} Qb6 {[%emt 0:19:26]} 23. Qe2 {[%emt 0:02:57]} Rd4 {[%emt 0:01:09]} 24. a3 {[%emt 0:05:57]} Rad8 {[%emt 0:02:06]} 25. Rd1 {[%emt 0:02:32]} Bc4 {[%emt 0:07:10]} 26. Qe1 {[%emt 0:03:36]} e6 {[%emt 0:06:12]} 27. Rxd4 {[%emt 0:04:52]} Qxd4 {[%emt 0:00:36]} 28. Re4 {[%emt 0:01:32]} Qd3 {[%emt 0:01:04]} 29. Qc1 {[%emt 0:09:05]} f5 {[%emt 0:08:03]} 30. Rh4 {[%emt 0:01:04]} Bd5 {[%emt 0:02:55]} 31. Qg5 {[%emt 0:04:04]} Bc6 {[%emt 0:01:14]} 32. Qf6 {[%emt 0:02:23]} (32. Rxh7 $11 {remains equal.} Kxh7 33. Qe7+ Kg8 34. Qxe6+ Kh8 35. Qf6+ Kh7 36. Qe7+ Kg8 37. Qe6+ Kh8 38. Qf6+ Kh7 39. Qe7+ Kg8 40. Qe6+) 32... Qd6 {[%emt 0:00:57]} 33. b4 {[%emt 0:00:41]} e5 {[%emt 0:00:57]} 34. Qg5 {[%emt 0:00:10]} Rf8 {[%emt 0:00:31]} 35. b5 {[%emt 0:00:50]} Bd7 {[%emt 0:00:47]} 36. Qh6 {[%emt 0:00:38]} Rf7 {[%emt 0:00:23]} 37. Qe3 {[%emt 0:00:11]} e4 {[%emt 0:01:15]} 38. Qxa7 {[%emt 0:00:25]} Qf6 {[%emt 0:00:32]} 39. g3 {[%emt 0:00:48]} Qxc3 {[%emt 0:00:27]} 40. Qxb7 {[%emt 0:00:13]} Qxa3 {[%emt 0:00:42]} 41. Qd5 {[%emt 0:00:17]} Qb4 {[%emt 0:00:50]} 42. Qa8+ {[%emt 0:00:33]} Kg7 {[%emt 0:00:24]} 43. Qd5 {[%emt 0:00:16]} Qb1+ {[%emt 0:00:49]} 44. Kh2 {[%emt 0:00:18]} h5 {[%emt 0:00:32]} 45. Qe5+ {[%emt 0:01:07]} Kh7 {[%emt 0:00:27]} 46. Qd5 {[%emt 0:00:24]} Rg7 {[%emt 0:00:11]} 47. Qd2 {[%emt 0:00:55]} Qxb5 {[%emt 0:00:17]} 48. Qg5 {[%emt 0:00:17]} Qe2 {[%emt 0:00:31]} 49. Rf4 {[%emt 0:00:05]} e3 {[%emt 0:00:21]} 0-1